[Event "Romanian-ch Youth Girls U12 2024"]
[Site "Eforie Nord"]
[Date "2024.04.15"]
[Round "5.1"]
[White "Cretescu, Emma"]
[Black "Dorobat, Alexia"]
[Result "1/2-1/2"]
[ECO "A47"]
[WhiteElo "1689"]
[BlackElo "1707"]
[Annotator "NA RC"]
[PlyCount "78"]
[EventDate "2024.04.10"]
[EventType "swiss"]
[EventCountry "ROU"]
[SourceTitle "playchess.com"]
[Source "ChessBase"]
[SourceQuality "1"]
[TimeControl "5400+30"]

1. d4 {[%emt 0:00:04]} Nf6 {[%emt 0:00:24]} 2. Nf3 {[%emt 0:00:16]} e6 {[%emt 0:00:05]} 3. e3 {[%emt 0:00:14]} b6 {[%emt 0:00:11]} 4. Bd3 {[%emt 0:00:43]} Bb7 {[%emt 0:00:06]} 5. O-O {[%emt 0:00:35]} c5 {[%emt 0:00:04]} 6. Nbd2 {[%emt 0:01:32]} Nc6 {[%emt 0:00:12]} 7. b3 {[%emt 0:00:37]} Rc8 {[%emt 0:01:52]} 8. a3 {[%emt 0:00:57]} cxd4 {[%emt 0:00:10]} 9. exd4 {[%emt 0:00:35]} Be7 {[%emt 0:02:34]} 10. Bb2 {[%emt 0:01:50]} d5 {[%emt 0:03:04]} 11. Ne5 {[%emt 0:04:06]} O-O {[%emt 0:01:46]} 12. f4 {[%emt 0:02:01]} Nd7 {[%emt 0:06:29]} 13. Rf3 {[%emt 0:22:00]} Ncxe5 {[%emt 0:06:58]} 14. fxe5 {[%emt 0:02:41]} f6 {[%emt 0:00:23]} 15. Rh3 {[%emt 0:01:29]} g6 {[%emt 0:15:14]} 16. Qg4 {[%emt 0:14:23]} f5 {[%emt 0:04:40]} 17. Qe2 {[%emt 0:01:42]} Kg7 {[%emt 0:06:48]} 18. Nf3 {[%emt 0:14:22]} a5 {[%emt 0:08:29]} 19. Bc1 {[%emt 0:02:15]} Kg8 {[%emt 0:01:30]} 20. Qd2 {[%emt 0:04:32]} Rf7 {[%emt 0:05:34]} 21. Qh6 {[%emt 0:02:51]} Bf8 {[%emt 0:02:59]} 22. Qf4 {[%emt 0:01:19]} Be7 {[%emt 0:02:22]} 23. Qg3 {[%emt 0:01:13]} Qc7 {[%emt 0:02:49]} 24. Bg5 {[%emt 0:02:41]} Nf8 {[%emt 0:01:16]} 25. Qh4 {[%emt 0:06:24]} Qc3 {[%emt 0:04:05]} 26. Ra2 {[%emt 0:00:17]} Qc7 {[%emt 0:03:02]} 27. Bxe7 {[%emt 0:07:42]} Rxe7 {[%emt 0:00:32]} 28. g4 {[%emt 0:01:14]} Rf7 {[%emt 0:04:26]} 29. gxf5 {[%emt 0:03:28]} exf5 {[%emt 0:02:31]} 30. Ng5 {[%emt 0:00:19]} Re7 {[%emt 0:00:26]} 31. Rg3 {[%emt 0:00:34]} Rg7 {[%emt 0:03:12]} 32. Qf4 {[%emt 0:00:36]} Qe7 {[%emt 0:01:25]} 33. h4 {[%emt 0:00:26]} Ne6 {[%emt 0:02:01]} 34. Nxe6 {[%emt 0:00:25]} Qxe6 {[%emt 0:00:01]} 35. h5 {[%emt 0:00:26]} Rf8 {[%emt 0:01:03]} 36. h6 {[%emt 0:00:34]} Rc7 {[%emt 0:01:24]} 37. b4 {[%emt 0:00:36]} Re7 {[%emt 0:02:38]} 38. bxa5 {[%emt 0:00:25]} bxa5 {[%emt 0:00:02]} 39. Rb2 {[%emt 0:00:27]} Qc6 {[%emt 0:02:13]} 1/2-1/2

[Event "Romanian-ch Youth Girls U12 2024"]
[Site "Eforie Nord"]
[Date "2024.04.15"]
[Round "5.2"]
[White "Cristurean, Andreea-Nuria"]
[Black "Sunea, Sara Maria"]
[Result "1/2-1/2"]
[ECO "A03"]
[WhiteElo "1500"]
[BlackElo "1798"]
[Annotator "NA RC"]
[PlyCount "113"]
[EventDate "2024.04.10"]
[EventType "swiss"]
[EventCountry "ROU"]
[SourceTitle "playchess.com"]
[Source "ChessBase"]
[SourceQuality "1"]
[TimeControl "5400+30"]

1. f4 {[%emt 0:53:28]} d5 2. Nf3 {[%emt 0:00:30]} Nf6 3. e3 {[%emt 0:00:30]} Bf5 4. g3 {[%emt 0:00:30]} e6 5. Bg2 {[%emt 0:00:30]} c5 6. O-O {[%emt 0:00:30]} Nc6 7. d3 {[%emt 0:00:30]} Be7 8. Qd2 {[%emt 0:00:30]} a6 9. b3 {[%emt 0:00:30]} Rc8 10. Bb2 {[%emt 0:00:30]} O-O 11. Re1 {[%emt 0:00:30]} b5 12. Ne5 {[%emt 0:00:30]} Bg6 13. Nxg6 {[%emt 0:00:30]} hxg6 14. e4 {[%emt 0:00:30]} d4 15. Qe2 {[%emt 0:00:30]} e5 16. Nd2 {[%emt 0:00:30]} Qd7 {[%emt 1:17:27]} 17. Nf3 {[%emt 0:00:30]} Bd6 {[%emt 0:00:30]} 18. fxe5 {[%emt 0:00:30]} Nxe5 {[%emt 0:00:30]} 19. Nxe5 {[%emt 0:00:30]} Bxe5 {[%emt 0:00:30]} 20. a4 {[%emt 0:00:30]} b4 {[%emt 0:00:30]} 21. Qf3 {[%emt 0:00:30]} Rfe8 {[%emt 0:00:30]} 22. Bc1 {[%emt 0:00:30]} Rc6 {[%emt 0:00:30]} 23. Bg5 {[%emt 0:00:30]} Nh7 {[%emt 0:00:30]} 24. Bd2 {[%emt 0:00:30]} Rf6 {[%emt 0:00:30]} 25. Qe2 {[%emt 0:00:30]} Qc7 {[%emt 0:00:30]} 26. Rf1 {[%emt 0:00:30]} Nf8 {[%emt 0:00:30]} 27. Rxf6 {[%emt 0:00:30]} Bxf6 {[%emt 0:00:30]} 28. Bh3 {[%emt 0:00:30]} Qd8 {[%emt 0:00:30]} 29. Be1 {[%emt 0:00:30]} Re5 {[%emt 0:00:30]} 30. Bg4 {[%emt 0:00:30]} Bg5 {[%emt 0:00:30]} 31. Bf2 {[%emt 0:00:30]} Nh7 {[%emt 0:00:30]} 32. h4 {[%emt 0:00:30]} Bh6 {[%emt 0:00:30]} 33. Bf3 {[%emt 0:00:30]} Nf6 {[%emt 0:00:30]} 34. g4 {[%emt 0:00:30]} Bf4 {[%emt 0:00:30]} 35. g5 {[%emt 0:00:30]} Nd5 {[%emt 0:00:30]} 36. Qf1 {[%emt 0:00:30]} Ne3 {[%emt 0:00:30]} 37. Bxe3 {[%emt 0:00:30]} Bxe3+ {[%emt 0:00:30]} 38. Kg2 {[%emt 0:00:30]} f6 {[%emt 0:00:30]} 39. gxf6 {[%emt 0:00:30]} Qxf6 {[%emt 0:00:30]} 40. Qh1 {[%emt 0:00:30]} g5 {[%emt 0:00:30]} 41. h5 {[%emt 0:00:30]} g4 {[%emt 0:00:30]} 42. Bxg4 {[%emt 0:00:30]} Qf2+ {[%emt 0:00:30]} 43. Kh3 {[%emt 0:00:30]} Qxc2 {[%emt 0:00:30]} 44. Qd1 {[%emt 0:00:30]} Qc3 {[%emt 0:00:30]} 45. Ra2 {[%emt 0:00:30]} Bg5 {[%emt 0:00:30]} 46. Qc2 {[%emt 0:00:30]} Rxe4 {[%emt 0:00:30]} 47. Bf3 {[%emt 0:00:30]} Re3 {[%emt 0:00:30]} 48. Kg4 {[%emt 0:00:30]} Bh6 {[%emt 0:00:30]} 49. Bd5+ {[%emt 0:00:30]} Kh8 {[%emt 0:00:30]} 50. Qf2 {[%emt 0:00:30]} Re8 {[%emt 0:00:30]} 51. Qf7 {[%emt 0:00:30]} Qe1 {[%emt 0:00:30]} 52. Qf2 {[%emt 0:00:30]} Qd1+ {[%emt 0:00:30]} 53. Qf3 {[%emt 0:00:30]} Qc1 {[%emt 0:00:30]} 54. Qf5 {[%emt 0:00:30]} Qd1+ {[%emt 0:00:30]} 55. Qf3 {[%emt 0:00:30]} Qxf3+ {[%emt 0:00:30]} 56. Bxf3 {[%emt 0:00:30]} Re5 {[%emt 0:00:30]} 57. Re2 {[%emt 0:00:30]} 1/2-1/2

[Event "Romanian-ch Youth Girls U12 2024"]
[Site "Eforie Nord"]
[Date "2024.04.16"]
[Round "6.1"]
[White "Cristurean, Andreea-Nuria"]
[Black "Cretescu, Emma"]
[Result "1/2-1/2"]
[ECO "B13"]
[WhiteElo "1500"]
[BlackElo "1689"]
[Annotator "NA RC"]
[PlyCount "62"]
[EventDate "2024.04.10"]
[EventType "swiss"]
[EventCountry "ROU"]
[SourceTitle "playchess.com"]
[Source "ChessBase"]
[SourceQuality "1"]
[TimeControl "5400+30"]

1. d4 {[%emt 0:00:03]} d5 {[%emt 0:00:23]} 2. Bf4 {[%emt 0:00:35]} c5 {[%emt 0:00:40]} 3. e3 {[%emt 0:02:03]} cxd4 {[%emt 0:01:31]} 4. exd4 {[%emt 0:01:37]} Bf5 {[%emt 0:01:46]} 5. c4 {[%emt 0:07:34]} Nc6 {[%emt 0:11:29]} 6. Nf3 {[%emt 0:07:14]} e6 {[%emt 0:05:23]} 7. a3 {[%emt 0:04:06]} Nf6 {[%emt 0:16:48]} 8. Nc3 {[%emt 0:09:05]} a6 {[%emt 0:03:24]} 9. c5 {[%emt 0:11:16]} b5 {[%emt 0:11:00]} 10. Ne5 {[%emt 0:10:33]} Nxe5 {[%emt 0:08:34]} 11. Bxe5 {[%emt 0:02:24]} Ne4 {[%emt 0:04:23]} 12. Nxe4 {[%emt 0:00:00]} dxe4 {[%emt 0:12:35]} 13. g4 {[%emt 0:12:42]} Bg6 {[%emt 0:02:43]} 14. Bg2 {[%emt 0:03:16]} Qd5 {[%emt 0:04:49]} 15. Bf4 {[%emt 0:07:09]} Be7 {[%emt 0:02:31]} 16. h4 {[%emt 0:01:59]} h6 {[%emt 0:01:05]} 17. Be3 {[%emt 0:04:02]} Rd8 {[%emt 0:04:07]} 18. Qe2 {[%emt 0:02:21]} Bf6 {[%emt 0:04:32]} 19. Rd1 {[%emt 0:01:52]} e5 {[%emt 0:01:10]} 20. dxe5 {[%emt 0:01:29]} Qxd1+ {[%emt 0:00:02]} 21. Qxd1 {[%emt 0:00:24]} Rxd1+ {[%emt 0:00:03]} 22. Kxd1 {[%emt 0:00:10]} Bxe5 {[%emt 0:00:08]} 23. Kc2 {[%emt 0:00:53]} Ke7 {[%emt 0:00:57]} 24. Rd1 {[%emt 0:00:57]} Ke6 {[%emt 0:01:25]} 25. Kb3 {[%emt 0:02:34]} Rc8 {[%emt 0:00:53]} 26. Rd2 {[%emt 0:01:18]} f6 {[%emt 0:00:27]} 27. f3 {[%emt 0:01:18]} exf3 {[%emt 0:00:28]} 28. Bxf3 {[%emt 0:00:19]} Rc7 {[%emt 0:00:32]} 29. Bd5+ {[%emt 0:00:22]} Ke7 {[%emt 0:00:22]} 30. c6 {[%emt 0:02:15]} Bf7 {[%emt 0:00:46]} 31. Bc5+ {[%emt 0:00:11]} Ke8 {[%emt 0:00:19]} 1/2-1/2

[Event "Romanian-ch Youth Girls U12 2024"]
[Site "Eforie Nord"]
[Date "2024.04.16"]
[Round "6.2"]
[White "Dorobat, Alexia"]
[Black "Zamfirache, Amalia-Maria"]
[Result "1/2-1/2"]
[ECO "B18"]
[WhiteElo "1707"]
[BlackElo "1725"]
[Annotator "NA RC"]
[PlyCount "68"]
[EventDate "2024.04.10"]
[EventType "swiss"]
[EventCountry "ROU"]
[SourceTitle "playchess.com"]
[Source "ChessBase"]
[SourceQuality "1"]
[TimeControl "5400+30"]

1. e4 {[%emt 0:00:02]} c6 {[%emt 0:00:10]} 2. d4 {[%emt 0:00:09]} d5 {[%emt 0:00:16]} 3. Nc3 {[%emt 0:00:03]} dxe4 {[%emt 0:00:21]} 4. Nxe4 {[%emt 0:00:02]} Bf5 {[%emt 0:01:14]} 5. Ng3 {[%emt 0:00:02]} Bg6 {[%emt 0:00:09]} 6. N1e2 {[%emt 0:00:06]} e6 {[%emt 0:00:40]} 7. Nf4 {[%emt 0:00:06]} Bd6 {[%emt 0:00:27]} 8. h4 {[%emt 0:00:27]} Qc7 {[%emt 0:00:51]} 9. Nxg6 {[%emt 0:03:39]} hxg6 {[%emt 0:00:45]} 10. Ne4 {[%emt 0:02:15]} Be7 {[%emt 0:05:16]} 11. g3 {[%emt 0:00:58]} Nf6 {[%emt 0:05:19]} 12. Bg2 {[%emt 0:05:43]} Nxe4 {[%emt 0:03:40]} 13. Bxe4 {[%emt 0:00:05]} Nd7 {[%emt 0:02:42]} 14. c3 {[%emt 0:07:26]} Nf6 {[%emt 0:03:06]} 15. Bg2 {[%emt 0:02:55]} Rd8 {[%emt 0:13:06]} 16. Bf4 {[%emt 0:12:35]} Bd6 {[%emt 0:04:20]} 17. Bxd6 {[%emt 0:00:46]} Rxd6 {[%emt 0:00:38]} 18. O-O {[%emt 0:00:20]} O-O {[%emt 0:01:50]} 19. Qc2 {[%emt 0:04:23]} Rfd8 {[%emt 0:02:01]} 20. Bf3 {[%emt 0:02:44]} b6 {[%emt 0:14:59]} 21. Kg2 {[%emt 0:06:14]} c5 {[%emt 0:01:12]} 22. dxc5 {[%emt 0:01:01]} Qxc5 {[%emt 0:00:56]} 23. Rad1 {[%emt 0:04:02]} Rxd1 {[%emt 0:03:50]} 24. Rxd1 {[%emt 0:00:02]} Rxd1 {[%emt 0:00:32]} 25. Qxd1 {[%emt 0:00:05]} Qc7 {[%emt 0:06:32]} 26. Qa4 {[%emt 0:04:26]} Nd7 {[%emt 0:03:51]} 27. Qd4 {[%emt 0:02:26]} Nc5 {[%emt 0:01:08]} 28. Qc4 {[%emt 0:04:04]} Qd8 {[%emt 0:00:55]} 29. Qb5 {[%emt 0:02:38]} Nd3 {[%emt 0:01:09]} 30. Be4 {[%emt 0:05:01]} Nc5 {[%emt 0:00:36]} 31. Qc4 {[%emt 0:04:21]} Nxe4 {[%emt 0:00:10]} 32. Qxe4 {[%emt 0:00:01]} Qc7 {[%emt 0:00:17]} 33. Qd4 {[%emt 0:01:43]} Qb7+ {[%emt 0:00:31]} 34. Kh2 {[%emt 0:01:10]} Qf3 {[%emt 0:00:16]} 1/2-1/2

[Event "Romanian-ch Youth Girls U12 2024"]
[Site "Eforie Nord"]
[Date "2024.04.17"]
[Round "7.1"]
[White "Cretescu, Emma"]
[Black "Leca Andrei, Anastasia"]
[Result "1/2-1/2"]
[ECO "D05"]
[WhiteElo "1689"]
[BlackElo "1653"]
[Annotator "NA RC COMBH"]
[PlyCount "172"]
[EventDate "2024.04.10"]
[EventType "swiss"]
[EventCountry "ROU"]
[SourceTitle "playchess.com"]
[Source "ChessBase"]
[SourceQuality "1"]
[TimeControl "5400+30"]

1. d4 {[%emt 0:00:03]} Nf6 {[%emt 0:00:48]} 2. Nf3 {[%emt 0:00:15]} e6 {[%emt 0:00:54]} 3. e3 {[%emt 0:00:11]} d5 {[%emt 0:00:44]} 4. Bd3 {[%emt 0:00:14]} c5 {[%emt 0:00:57]} 5. b3 {[%emt 0:00:10]} b6 {[%emt 0:00:36]} 6. Bb2 {[%emt 0:00:33]} Be7 {[%emt 0:02:10]} 7. O-O {[%emt 0:00:14]} O-O {[%emt 0:00:46]} 8. Nbd2 {[%emt 0:00:14]} Ba6 {[%emt 0:00:52]} 9. Bxa6 {[%emt 0:03:42]} Nxa6 {[%emt 0:00:07]} 10. a3 {[%emt 0:02:14]} Rc8 {[%emt 0:03:26]} 11. c4 {[%emt 0:01:32]} Nb8 {[%emt 0:03:24]} 12. Rc1 {[%emt 0:01:31]} Qd7 {[%emt 0:03:50]} 13. dxc5 {[%emt 0:07:39]} bxc5 {[%emt 0:02:28]} 14. Qc2 {[%emt 0:02:06]} h6 {[%emt 0:06:18]} 15. Rfd1 {[%emt 0:00:58]} Qb7 {[%emt 0:03:08]} 16. Bc3 {[%emt 0:16:22]} Rfd8 {[%emt 0:08:05]} 17. Qb2 {[%emt 0:09:53]} Ne8 {[%emt 0:09:58]} 18. h3 {[%emt 0:16:04]} Bf6 {[%emt 0:04:22]} 19. Ne5 {[%emt 0:08:16]} Nc6 {[%emt 0:10:37]} 20. Nxc6 {[%emt 0:02:28]} Qxc6 {[%emt 0:07:29]} 21. Bxf6 {[%emt 0:02:22]} Nxf6 {[%emt 0:00:10]} 22. Nf3 {[%emt 0:16:57]} Qb6 {[%emt 0:07:34]} 23. Ne5 {[%emt 0:04:48]} Rb8 {[%emt 0:03:07]} 24. Rb1 {[%emt 0:00:18]} Nd7 {[%emt 0:02:00]} 25. cxd5 {[%emt 0:01:22]} Nxe5 {[%emt 0:03:59]} 26. Qxe5 {[%emt 0:00:02]} exd5 {[%emt 0:00:09]} 27. Rxd5 {[%emt 0:00:28]} Rxd5 {[%emt 0:01:04]} 28. Qxd5 {[%emt 0:00:01]} Qa5 {[%emt 0:03:11]} 29. a4 {[%emt 0:02:09]} Qc3 {[%emt 0:01:56]} 30. Qd1 {[%emt 0:01:00]} Qb4 {[%emt 0:03:20]} 31. Rc1 {[%emt 0:00:49]} Qa3 {[%emt 0:00:37]} 32. Rc3 {[%emt 0:00:38]} Rc8 {[%emt 0:02:53]} 33. Qc1 {[%emt 0:00:35]} Qb4 {[%emt 0:00:27]} 34. Qc2 {[%emt 0:00:28]} a5 {[%emt 0:00:41]} 35. Kf1 {[%emt 0:00:31]} Qb6 {[%emt 0:02:40]} 36. Rd3 {[%emt 0:00:30]} Qb4 {[%emt 0:00:19]} 37. Qd2 {[%emt 0:00:36]} Qb6 {[%emt 0:01:44]} 38. Qc3 {[%emt 0:00:28]} c4 {[%emt 0:01:12]} 39. bxc4 {[%emt 0:00:35]} Qb1+ {[%emt 0:00:05]} 40. Ke2 {[%emt 0:00:03]} Qa2+ {[%emt 0:00:10]} 41. Rd2 {[%emt 0:00:30]} Qxc4+ {[%emt 0:01:43]} 42. Qxc4 {[%emt 0:00:02]} Rxc4 {[%emt 0:00:01]} 43. Rd8+ {[%emt 0:00:25]} Kh7 {[%emt 0:00:02]} 44. Rd4 {[%emt 0:00:10]} Rc5 {[%emt 0:00:51]} 45. Kd3 {[%emt 0:00:24]} Kg6 {[%emt 0:00:43]} 46. e4 {[%emt 0:00:20]} f5 {[%emt 0:00:39]} 47. Rd6+ {[%emt 0:01:00]} Kh7 {[%emt 0:00:44]} 48. f3 {[%emt 0:00:32]} Rc1 {[%emt 0:00:32]} 49. Rd5 {[%emt 0:01:23]} fxe4+ {[%emt 0:00:35]} 50. fxe4 {[%emt 0:00:14]} Rd1+ {[%emt 0:00:17]} 51. Ke2 {[%emt 0:01:41]} Ra1 {[%emt 0:00:13]} 52. Rxa5 {[%emt 0:00:00]} Ra2+ {[%emt 0:00:04]} 53. Kf3 {[%emt 0:00:00]} Ra3+ {[%emt 0:00:03]} 54. Kf4 {[%emt 0:00:00]} Ra2 {[%emt 0:00:23]} 55. g3 {[%emt 0:00:00]} Rf2+ {[%emt 0:00:42]} 56. Kg4 {[%emt 0:00:33]} Kg6 {[%emt 0:00:05]} 57. Ra6+ {[%emt 0:00:09]} Kf7 {[%emt 0:00:07]} 58. e5 {[%emt 0:00:40]} Re2 {[%emt 0:00:12]} 59. e6+ {[%emt 0:00:12]} Kf6 {[%emt 0:00:29]} 60. Kf3 {[%emt 0:01:04]} Ra2 {[%emt 0:00:14]} 61. h4 {[%emt 0:01:32]} Ra3+ {[%emt 0:00:16]} 62. Kg4 {[%emt 0:00:16]} g6 {[%emt 0:00:08]} 63. a5 {[%emt 0:00:21]} Ra4+ {[%emt 0:00:06]} 64. Kh3 {[%emt 0:00:07]} Ra3 {[%emt 0:00:07]} 65. e7+ {[%emt 0:00:47]} Kxe7 {[%emt 0:00:05]} 66. Rxg6 {[%emt 0:00:08]} Rxa5 {[%emt 0:00:20]} 67. Rxh6 {[%emt 0:00:03]} Ra4 {[%emt 0:00:07]} 68. h5 {[%emt 0:00:27]} Kf7 {[%emt 0:00:04]} 69. Rg6 {[%emt 0:00:18]} Re4 {[%emt 0:00:16]} 70. g4 {[%emt 0:00:17]} Re1 {[%emt 0:00:35]} 71. Kh4 {[%emt 0:00:15]} Re5 {[%emt 0:00:00]} 72. Rg5 {[%emt 0:00:24]} Re1 {[%emt 0:00:06]} 73. Rf5+ {[%emt 0:00:48]} Kg7 {[%emt 0:00:15]} 74. Kg5 {[%emt 0:00:23]} Re6 {[%emt 0:00:05]} 75. Rc5 {[%emt 0:01:40]} Re7 {[%emt 0:00:33]} 76. Rd5 {[%emt 0:00:46]} Rf7 {[%emt 0:00:42]} 77. h6+ {[%emt 0:00:24]} Kh7 {[%emt 0:00:14]} 78. Kh5 {[%emt 0:00:33]} Rf2 {[%emt 0:00:33]} 79. Rd7+ {[%emt 0:00:11]} Kg8 {[%emt 0:00:22]} 80. Kg6 {[%emt 0:00:39]} Rf8 {[%emt 0:00:18]} 81. g5 {[%emt 0:01:06]} Re8 {[%emt 0:00:23]} 82. h7+ {[%emt 0:00:19]} Kh8 {[%emt 0:00:05]} 83. Kf7 {[%emt 0:01:05]} Rf8+ {[%emt 0:00:15]} 84. Ke6 {[%emt 0:00:28]} Rf6+ {[%emt 0:00:10]} 85. Ke5 {[%emt 0:00:28]} Rf5+ {[%emt 0:00:14]} 86. Ke6 {[%emt 0:00:14]} Rxg5 {[%emt 0:10:15]} 1/2-1/2

[Event "Romanian-ch Youth Girls U12 2024"]
[Site "Eforie Nord"]
[Date "2024.04.17"]
[Round "7.2"]
[White "Sabou, Stefania Theodora"]
[Black "Dorobat, Alexia"]
[Result "1-0"]
[ECO "A45"]
[WhiteElo "1612"]
[BlackElo "1707"]
[Annotator "NA RC COMBH"]
[PlyCount "51"]
[EventDate "2024.04.10"]
[EventType "swiss"]
[EventCountry "ROU"]
[SourceTitle "playchess.com"]
[Source "ChessBase"]
[SourceQuality "1"]
[TimeControl "5400+30"]

1. d4 {[%emt 1:31:00]} Nf6 {[%emt 0:00:11]} 2. Bg5 {[%emt 0:00:00]} e6 {[%emt 0:01:41]} 3. e4 {[%emt 0:00:00]} h6 {[%emt 0:00:28]} 4. Bxf6 {[%emt 0:00:00]} Qxf6 {[%emt 0:00:03]} 5. c3 {[%emt 0:00:00]} b6 {[%emt 0:02:14]} 6. Bd3 {[%emt 0:00:00]} Bb7 {[%emt 0:02:00]} 7. Nd2 {[%emt 0:00:00]} Qd8 {[%emt 0:05:42]} 8. Ne2 {[%emt 0:00:00]} Be7 {[%emt 0:00:34]} 9. O-O {[%emt 0:00:00]} O-O {[%emt 0:00:20]} 10. f4 {[%emt 0:00:00]} f5 {[%emt 0:05:18]} 11. Qb3 {[%emt 0:00:00]} fxe4 {[%emt 0:02:55]} 12. Nxe4 {[%emt 0:00:00]} Kh8 {[%emt 0:05:59]} 13. Bb1 {[%emt 0:00:00]} d5 {[%emt 0:15:27]} 14. N4g3 {[%emt 0:00:00]} Nd7 {[%emt 0:02:35]} 15. Qc2 {[%emt 0:00:00]} Nf6 {[%emt 0:01:50]} 16. f5 {[%emt 0:00:00]} exf5 {[%emt 0:03:35]} 17. Nf4 {[%emt 0:00:00]} Rf7 {[%emt 0:03:35]} 18. Nxf5 {[%emt 0:00:00]} Bd6 {[%emt 0:06:26]} 19. Nxd6 {[%emt 0:00:00]} Qxd6 {[%emt 0:03:27]} 20. Nh5 {[%emt 0:00:00]} Rg8 {[%emt 0:10:19]} 21. Qg6 {[%emt 0:00:00]} Qf8 {[%emt 0:02:39]} 22. Bf5 {[%emt 0:00:00]} Re7 {[%emt 0:06:54]} 23. Rae1 {[%emt 0:00:00]} Ba6 {[%emt 0:04:37]} 24. Nf4 {[%emt 0:00:00]} Bxf1 {[%emt 0:02:02]} 25. Qh7+ {[%emt 0:00:00]} Nxh7 {[%emt 0:00:17]} 26. Ng6# {[%emt 0:00:00]} 1-0

[Event "Romanian-ch Youth Girls U12 2024"]
[Site "Eforie Nord"]
[Date "2024.04.18"]
[Round "8.1"]
[White "Cretescu, Emma"]
[Black "Zamfirache, Amalia-Maria"]
[Result "1-0"]
[ECO "D94"]
[WhiteElo "1689"]
[BlackElo "1725"]
[Annotator "NA RC COMBH"]
[PlyCount "183"]
[EventDate "2024.04.10"]
[EventType "swiss"]
[EventCountry "ROU"]
[SourceTitle "playchess.com"]
[Source "ChessBase"]
[SourceQuality "1"]
[TimeControl "5400+30"]

1. d4 {[%emt 0:00:03]} d5 {[%emt 0:00:27]} 2. Nf3 {[%emt 0:00:14]} Nf6 {[%emt 0:00:20]} 3. e3 {[%emt 0:00:20]} g6 {[%emt 0:00:55]} 4. Be2 {[%emt 0:00:25]} Bg7 {[%emt 0:00:26]} 5. O-O {[%emt 0:00:14]} O-O {[%emt 0:00:42]} 6. c4 {[%emt 0:00:47]} e6 {[%emt 0:03:22]} 7. Nc3 {[%emt 0:00:29]} b6 {[%emt 0:01:30]} 8. b3 {[%emt 0:00:47]} Bb7 {[%emt 0:00:53]} 9. Bb2 {[%emt 0:01:35]} c5 {[%emt 0:06:16]} 10. cxd5 {[%emt 0:07:14]} exd5 {[%emt 0:01:17]} 11. Rc1 {[%emt 0:01:24]} Nbd7 {[%emt 0:06:53]} 12. Ba3 {[%emt 0:03:40]} Ne4 {[%emt 0:15:46]} 13. Nxe4 {[%emt 0:11:08]} dxe4 {[%emt 0:00:10]} 14. Nd2 {[%emt 0:00:46]} Qg5 {[%emt 0:18:48]} 15. dxc5 {[%emt 0:22:38]} Nxc5 {[%emt 0:00:25]} 16. Bxc5 {[%emt 0:46:46]} bxc5 {[%emt 0:00:18]} 17. Qc2 {[%emt 0:00:00]} Rad8 {[%emt 0:08:45]} 18. Nxe4 {[%emt 0:00:00]} Bxe4 {[%emt 0:00:06]} 19. Qxe4 {[%emt 0:00:00]} Rd2 {[%emt 0:00:38]} 20. Rc2 {[%emt 0:00:00]} Rxc2 {[%emt 0:04:20]} 21. Qxc2 {[%emt 0:00:00]} Rd8 {[%emt 0:00:55]} 22. Bf3 {[%emt 0:00:00]} Be5 {[%emt 0:06:10]} 23. Rc1 {[%emt 0:00:00]} Bd6 {[%emt 0:00:15]} 24. Qc4 {[%emt 0:00:00]} Kg7 {[%emt 0:04:40]} 25. Qa6 {[%emt 0:00:00]} Qe7 {[%emt 0:02:42]} 26. g3 {[%emt 0:00:00]} Qf6 {[%emt 0:01:00]} 27. Bg2 {[%emt 0:00:00]} Qe7 {[%emt 0:00:13]} 28. Qb7 {[%emt 0:00:00]} Qxb7 {[%emt 0:00:16]} 29. Bxb7 {[%emt 0:00:00]} Be7 {[%emt 0:00:39]} 30. Rc4 {[%emt 0:00:00]} Rd7 {[%emt 0:00:22]} 31. Bc6 {[%emt 0:00:00]} Rc7 {[%emt 0:00:13]} 32. Ba4 {[%emt 0:02:09]} Rb7 {[%emt 0:00:29]} 33. Kg2 {[%emt 0:01:11]} Rb4 {[%emt 0:00:13]} 34. Rc3 {[%emt 0:01:47]} h6 {[%emt 0:00:27]} 35. Rd3 {[%emt 0:00:49]} Rb7 {[%emt 0:00:45]} 36. Kf3 {[%emt 0:00:47]} Bf8 {[%emt 0:01:36]} 37. Rd7 {[%emt 0:01:13]} Rxd7 {[%emt 0:00:14]} 38. Bxd7 {[%emt 0:00:01]} Bd6 {[%emt 0:00:18]} 39. Ke4 {[%emt 0:00:16]} Bc7 {[%emt 0:00:06]} 40. Kd5 {[%emt 0:00:27]} Bb6 {[%emt 0:00:01]} 41. a4 {[%emt 0:00:42]} Kf6 {[%emt 0:00:11]} 42. Kc6 {[%emt 0:00:41]} Ke7 {[%emt 0:00:14]} 43. Bh3 {[%emt 0:00:28]} g5 {[%emt 0:00:46]} 44. Bg2 {[%emt 0:00:49]} f6 {[%emt 0:00:12]} 45. Kb5 {[%emt 0:00:14]} Kd6 {[%emt 0:00:14]} 46. Ka6 {[%emt 0:00:42]} Ke5 {[%emt 0:00:25]} 47. Kb5 {[%emt 0:01:38]} Kd6 {[%emt 0:00:00]} 48. Bf3 {[%emt 0:00:44]} Ke5 {[%emt 0:00:06]} 49. Bg2 {[%emt 0:00:45]} Kd6 {[%emt 0:00:02]} 50. Bh1 {[%emt 0:00:20]} Ke5 {[%emt 0:00:05]} 51. Kc6 {[%emt 0:00:12]} Ke6 {[%emt 0:00:13]} 52. Bg2 {[%emt 0:00:30]} Ke5 {[%emt 0:00:34]} 53. Kd7 {[%emt 0:00:41]} Kf5 {[%emt 0:00:40]} 54. Ke7 {[%emt 0:00:35]} Ke5 {[%emt 0:00:28]} 55. Kf7 {[%emt 0:00:33]} h5 {[%emt 0:00:18]} 56. Kg6 {[%emt 0:00:27]} h4 {[%emt 0:01:03]} 57. gxh4 {[%emt 0:00:25]} gxh4 {[%emt 0:00:02]} 58. Kh5 {[%emt 0:01:01]} Ba5 {[%emt 0:00:14]} 59. Kxh4 {[%emt 0:00:14]} Be1 {[%emt 0:00:04]} 60. Kg3 {[%emt 0:00:16]} Kf5 {[%emt 0:00:02]} 61. Kf3 {[%emt 0:00:32]} Kg5 {[%emt 0:00:11]} 62. Ke2 {[%emt 0:00:29]} Ba5 {[%emt 0:00:01]} 63. Kd3 {[%emt 0:00:38]} Be1 {[%emt 0:00:08]} 64. Ke2 {[%emt 0:00:43]} Ba5 {[%emt 0:00:02]} 65. Kf3 {[%emt 0:00:12]} Be1 {[%emt 0:00:05]} 66. Bf1 {[%emt 0:00:29]} Kf5 {[%emt 0:00:13]} 67. Bh3+ {[%emt 0:00:50]} Kg5 {[%emt 0:00:01]} 68. Bg2 {[%emt 0:00:29]} Kh5 {[%emt 0:00:11]} 69. Ke2 {[%emt 0:00:23]} Ba5 {[%emt 0:00:01]} 70. Kd3 {[%emt 0:00:31]} Be1 {[%emt 0:00:03]} 71. f3 {[%emt 0:00:54]} Bf2 {[%emt 0:00:09]} 72. Bh3 {[%emt 0:00:39]} Bg1 {[%emt 0:00:16]} 73. Bg4+ {[%emt 0:00:12]} Kg5 {[%emt 0:00:05]} 74. h3 {[%emt 0:00:27]} Bf2 {[%emt 0:00:13]} 75. f4+ {[%emt 0:00:38]} Kg6 {[%emt 0:00:05]} 76. Ke4 {[%emt 0:00:23]} Be1 {[%emt 0:00:22]} 77. Kf3 {[%emt 0:00:28]} Bh4 {[%emt 0:00:15]} 78. Ke2 {[%emt 0:00:48]} Bg3 {[%emt 0:00:09]} 79. Kd3 {[%emt 0:00:16]} Bf2 {[%emt 0:00:04]} 80. a5 {[%emt 0:00:28]} Be1 {[%emt 0:00:18]} 81. a6 {[%emt 0:00:21]} Ba5 {[%emt 0:00:09]} 82. h4 {[%emt 0:00:26]} Be1 {[%emt 0:00:11]} 83. h5+ {[%emt 0:00:11]} Kh6 {[%emt 0:00:02]} 84. Ke4 {[%emt 0:00:37]} Bc3 {[%emt 0:00:07]} 85. Kf5 {[%emt 0:00:35]} Bd2 {[%emt 0:01:01]} 86. e4 {[%emt 0:00:43]} Bc3 {[%emt 0:00:13]} 87. e5 {[%emt 0:00:34]} fxe5 {[%emt 0:00:08]} 88. fxe5 {[%emt 0:00:02]} Be1 {[%emt 0:00:08]} 89. e6 {[%emt 0:00:41]} Bh4 {[%emt 0:00:01]} 90. Ke5 {[%emt 0:00:33]} Be7 {[%emt 0:00:02]} 91. Kd5 {[%emt 0:00:27]} Kg7 {[%emt 0:00:38]} 92. Kc6 {[%emt 0:00:14]} 1-0